{"text_format":"3","workbook":"xlsx","n_sheets":7,"sheets":["Lundi","Mardi","Mercredi","Jeudi","Vendredi","Samedi","Dimanche"],"not_rendered":{"defined_names":21},"read":"whole","date_system":"1900"}

{"sheet":"Lundi","index":0,"n_rows":10,"n_cols":13,"rows_kept":10,"merged":[[0,1,0,4],[1,2,1,4],[2,2,2,4]]}
[null,"Horaire de roulement"]
[null,"Semaine du : ","Date"]
[null,"Nom du service : ","Nom"]
[]
[null,"LUNDI","7 h","8 h","9 h","10 h","11 h","12 h","13 h","14 h","15 h","Maladie ?","TOTAL"]
[null,"Nom 1","responsable","responsable","responsable","responsable","responsable","responsable","responsable","responsable","responsable",null,{"$f":"COUNTIF(Lundi[[#This Row],[7 h]:[15 h]],\"*\")","v":9}]
[null,"Nom 2",null,"caissier","caissier","caissier","caissier",{"$nulls":5},{"$f":"COUNTIF(Lundi[[#This Row],[7 h]:[15 h]],\"*\")","v":4}]
[null,"Nom 3",null,"réception","réception","réception","réception ","réception","réception","réception",null,null,{"$f":"COUNTIF(Lundi[[#This Row],[7 h]:[15 h]],\"*\")","v":7}]
[null,"Nom 4",null,"réception","réception","réception","réception ","réception","réception","réception",null,null,{"$f":"COUNTIF(Lundi[[#This Row],[7 h]:[15 h]],\"*\")","v":7}]
[null,"Nom 5",{"$nulls":9},"Maladie",{"$f":"COUNTIF(Lundi[[#This Row],[7 h]:[15 h]],\"*\")","v":0}]

{"sheet":"Mardi","index":1,"n_rows":10,"n_cols":13,"rows_kept":10,"merged":[[0,1,0,4],[1,2,1,4],[2,2,2,4]]}
[null,"Horaire de roulement"]
[null,"Semaine du : ",{"$f":"Lundi!C2","v":"Date"}]
[null,"Nom du service : ",{"$f":"Lundi!C3","v":"Nom"}]
[]
[null,"MARDI","7 h","8 h","9 h","10 h","11 h","12 h","13 h","14 h","15 h","Maladie ?","TOTAL"]
[null,"Nom 1","responsable","responsable","responsable","responsable","responsable","responsable","responsable","responsable","responsable",null,{"$f":"COUNTIF(Mardi[[#This Row],[7 h]:[15 h]],\"*\")","v":9}]
[null,"Nom 2",null,"caissier","caissier","caissier","caissier",{"$nulls":5},{"$f":"COUNTIF(Mardi[[#This Row],[7 h]:[15 h]],\"*\")","v":4}]
[null,"Nom 3",null,"réception","réception","réception","réception ","réception","réception","réception",null,null,{"$f":"COUNTIF(Mardi[[#This Row],[7 h]:[15 h]],\"*\")","v":7}]
[null,"Nom 4",null,"réception","réception","réception","réception ","réception","réception","réception",null,null,{"$f":"COUNTIF(Mardi[[#This Row],[7 h]:[15 h]],\"*\")","v":7}]
[null,"Nom 5",{"$nulls":9},"Maladie",{"$f":"COUNTIF(Mardi[[#This Row],[7 h]:[15 h]],\"*\")","v":0}]

{"sheet":"Mercredi","index":2,"n_rows":10,"n_cols":13,"rows_kept":10,"merged":[[0,1,0,4],[1,2,1,4],[2,2,2,4]]}
[null,"Horaire de roulement"]
[null,"Semaine du : ",{"$f":"Lundi!C2","v":"Date"}]
[null,"Nom du service : ",{"$f":"Lundi!C3","v":"Nom"}]
[]
[null,"MERCREDI","7 h","8 h","9 h","10 h","11 h","12 h","13 h","14 h","15 h","Maladie ?","TOTAL"]
[null,"Nom 1","responsable","responsable","responsable","responsable","responsable","responsable","responsable","responsable","responsable",null,{"$f":"COUNTIF(Mercredi[[#This Row],[7 h]:[15 h]],\"*\")","v":9}]
[null,"Nom 2",null,"caissier","caissier","caissier","caissier",{"$nulls":5},{"$f":"COUNTIF(Mercredi[[#This Row],[7 h]:[15 h]],\"*\")","v":4}]
[null,"Nom 3",null,"réception","réception","réception","réception ","réception","réception","réception",null,null,{"$f":"COUNTIF(Mercredi[[#This Row],[7 h]:[15 h]],\"*\")","v":7}]
[null,"Nom 4",null,"réception","réception","réception","réception ","réception","réception","réception",null,null,{"$f":"COUNTIF(Mercredi[[#This Row],[7 h]:[15 h]],\"*\")","v":7}]
[null,"Nom 5",{"$nulls":9},"Maladie",{"$f":"COUNTIF(Mercredi[[#This Row],[7 h]:[15 h]],\"*\")","v":0}]

{"sheet":"Jeudi","index":3,"n_rows":10,"n_cols":13,"rows_kept":10,"merged":[[0,1,0,4],[1,2,1,4],[2,2,2,4]]}
[null,"Horaire de roulement"]
[null,"Semaine du : ",{"$f":"Lundi!C2","v":"Date"}]
[null,"Nom du service : ",{"$f":"Lundi!C3","v":"Nom"}]
[]
[null,"JEUDI","7 h","8 h","9 h","10 h","11 h","12 h","13 h","14 h","15 h","Maladie ?","TOTAL"]
[null,"Nom 1","responsable","responsable","responsable","responsable","responsable","responsable","responsable","responsable","responsable",null,{"$f":"COUNTIF(Jeudi[[#This Row],[7 h]:[15 h]],\"*\")","v":9}]
[null,"Nom 2",null,"caissier","caissier","caissier","caissier",{"$nulls":5},{"$f":"COUNTIF(Jeudi[[#This Row],[7 h]:[15 h]],\"*\")","v":4}]
[null,"Nom 3",null,"réception","réception","réception","réception ","réception","réception","réception",null,null,{"$f":"COUNTIF(Jeudi[[#This Row],[7 h]:[15 h]],\"*\")","v":7}]
[null,"Nom 4",null,"réception","réception","réception","réception ","réception","réception","réception",null,null,{"$f":"COUNTIF(Jeudi[[#This Row],[7 h]:[15 h]],\"*\")","v":7}]
[null,"Nom 5",{"$nulls":9},"Maladie",{"$f":"COUNTIF(Jeudi[[#This Row],[7 h]:[15 h]],\"*\")","v":0}]

{"sheet":"Vendredi","index":4,"n_rows":10,"n_cols":13,"rows_kept":10,"merged":[[0,1,0,4],[1,2,1,4],[2,2,2,4]]}
[null,"Horaire de roulement"]
[null,"Semaine du : ",{"$f":"Lundi!C2","v":"Date"}]
[null,"Nom du service : ",{"$f":"Lundi!C3","v":"Nom"}]
[]
[null,"VENDREDI","7 h","8 h","9 h","10 h","11 h","12 h","13 h","14 h","15 h","Maladie ?","TOTAL"]
[null,"Nom 1","responsable","responsable","responsable","responsable","responsable","responsable","responsable","responsable","responsable",null,{"$f":"COUNTIF(Vendredi[[#This Row],[7 h]:[15 h]],\"*\")","v":9}]
[null,"Nom 2",null,"caissier","caissier","caissier","caissier",{"$nulls":5},{"$f":"COUNTIF(Vendredi[[#This Row],[7 h]:[15 h]],\"*\")","v":4}]
[null,"Nom 3",null,"réception","réception","réception","réception ","réception","réception","réception",null,null,{"$f":"COUNTIF(Vendredi[[#This Row],[7 h]:[15 h]],\"*\")","v":7}]
[null,"Nom 4",null,"réception","réception","réception","réception ","réception","réception","réception",null,null,{"$f":"COUNTIF(Vendredi[[#This Row],[7 h]:[15 h]],\"*\")","v":7}]
[null,"Nom 5",{"$nulls":9},"Maladie",{"$f":"COUNTIF(Vendredi[[#This Row],[7 h]:[15 h]],\"*\")","v":0}]

{"sheet":"Samedi","index":5,"n_rows":10,"n_cols":13,"rows_kept":10,"merged":[[0,1,0,4],[1,2,1,4],[2,2,2,4]]}
[null,"Horaire de roulement"]
[null,"Semaine du : ",{"$f":"Lundi!C2","v":"Date"}]
[null,"Nom du service : ",{"$f":"Lundi!C3","v":"Nom"}]
[]
[null,"SAMEDI","7 h","8 h","9 h","10 h","11 h","12 h","13 h","14 h","15 h","Maladie ?","TOTAL"]
[null,"Nom 1","responsable","responsable","responsable","responsable","responsable","responsable","responsable","responsable","responsable",null,{"$f":"COUNTIF(Samedi[[#This Row],[7 h]:[15 h]],\"*\")","v":9}]
[null,"Nom 2",null,"caissier","caissier","caissier","caissier",{"$nulls":5},{"$f":"COUNTIF(Samedi[[#This Row],[7 h]:[15 h]],\"*\")","v":4}]
[null,"Nom 3",null,"réception","réception","réception","réception ","réception","réception","réception",null,null,{"$f":"COUNTIF(Samedi[[#This Row],[7 h]:[15 h]],\"*\")","v":7}]
[null,"Nom 4",null,"réception","réception","réception","réception ","réception","réception","réception",null,null,{"$f":"COUNTIF(Samedi[[#This Row],[7 h]:[15 h]],\"*\")","v":7}]
[null,"Nom 5",{"$nulls":9},"Maladie",{"$f":"COUNTIF(Samedi[[#This Row],[7 h]:[15 h]],\"*\")","v":0}]

{"sheet":"Dimanche","index":6,"n_rows":10,"n_cols":13,"rows_kept":10,"merged":[[0,1,0,4],[1,2,1,4],[2,2,2,4]]}
[null,"Horaire de roulement"]
[null,"Semaine du : ",{"$f":"Lundi!C2","v":"Date"}]
[null,"Nom du service : ",{"$f":"Lundi!C3","v":"Nom"}]
[]
[null,"DIMANCHE","7 h","8 h","9 h","10 h","11 h","12 h","13 h","14 h","15 h","Maladie ?","TOTAL"]
[null,"Nom 1","responsable","responsable","responsable","responsable","responsable","responsable","responsable","responsable","responsable",null,{"$f":"COUNTIF(Dimanche[[#This Row],[7 h]:[15 h]],\"*\")","v":9}]
[null,"Nom 2",null,"caissier","caissier","caissier","caissier",{"$nulls":5},{"$f":"COUNTIF(Dimanche[[#This Row],[7 h]:[15 h]],\"*\")","v":4}]
[null,"Nom 3",null,"réception","réception","réception","réception ","réception","réception","réception",null,null,{"$f":"COUNTIF(Dimanche[[#This Row],[7 h]:[15 h]],\"*\")","v":7}]
[null,"Nom 4",null,"réception","réception","réception","réception ","réception","réception","réception",null,null,{"$f":"COUNTIF(Dimanche[[#This Row],[7 h]:[15 h]],\"*\")","v":7}]
[null,"Nom 5",{"$nulls":9},"Maladie",{"$f":"COUNTIF(Dimanche[[#This Row],[7 h]:[15 h]],\"*\")","v":0}]